bitfinex/quotes_ETHUSD_20251128
["timestamp","ask_amount","ask_price","bid_price","bid_amount"]
[1764364826176,0.30420307,3047.7,3047.6,1.70161747]
[1764364826393,0.25742553,3047.7,3047.6,2.30404481]
[1764364826542,0.002,3048.9,3048.6,0.405504]
[1764364826749,0.2846,3048.7,3048.6,0.405504]
[1764364827983,0.1918,3048.9,3048.6,0.405504]
[1764364828151,0.002,3048.9,3048.6,0.859504]
[1764364830282,0.002,3048.9,3048.8,0.55325407]
[1764364830673,0.4628,3048.9,3048.8,0.09925407]
[1764364830874,0.4628,3048.9,3048.7,0.09925407]
[1764364832181,0.002,3048.9,3048.8,0.95875807]
[1764364832565,0.002,3048.9,3048.8,1.43725807]
[1764364833483,0.002,3048.9,3048.8,2.08544797]
[1764364834588,0.002,3048.9,3048.8,1.43725807]
[1764364838490,0.30682585,3048.9,3048.8,1.43725807]
[1764364839308,0.002,3048.9,3048.8,2.19565197]
[1764364843267,0.002,3048.9,3048.8,2.16285218]
[1764364844297,0.002,3048.9,3048.8,2.3791374]
[1764364844473,0.002,3048.9,3048.8,2.41193719]
[1764364844997,0.002,3048.9,3048.8,2.3791374]
[1764364847379,0.002,3048.9,3048.8,1.65354329]
[1764364849201,0.3069093,3048.9,3048.8,1.65354329]
[1764364850183,0.30685544,3048.9,3048.8,1.65354329]
[1764364851686,0.30685544,3048.9,3048.8,1.17504329]
[1764364852800,0.30685544,3048.9,3048.8,4.7751124]
[1764364855880,0.30685544,3048.9,3048.8,5.1806164]
[1764364858406,0.76725544,3048.9,3048.8,4.41107711]
[1764364858607,1.43905544,3048.9,3048.2,0.72559411]
[1764364858806,0.78605544,3048.8,3048.6,0.09925407]
[1764364859014,0.4812,3048.8,3048.7,0.405504]
[1764364859312,0.30568102,3048.8,3048.7,0.405504]
[1764364859512,0.77288102,3048.8,3048.7,0.405504]
[1764364859883,1.24248102,3048.8,3048.7,0.405504]
[1764364860078,1.24248102,3048.8,3048.6,0.82484818]
[1764364860079,1.24248102,3048.8,3048.6,0.09925407]
[1764364860284,0.78968102,3048.7,3048.2,0.09925407]
[1764364860481,0.30568102,3048.6,3048.2,0.09925407]
[1764364860722,0.30568102,3048.5,3048.2,0.09925407]
[1764364861029,0.30574521,3048.4,3048.3,0.09925407]
[1764364861184,0.30574521,3048.4,3048.3,0.53756324]
[1764364861384,0.30574521,3048.4,3048.3,0.99966324]
[1764364861892,0.30574521,3048.4,3048.3,4.28018024]
[1764364862297,0.30574521,3048.4,3048.3,4.73038024]
[1764364864298,0.30574521,3048.4,3048.3,4.28018024]
[1764364865016,0.6863,3048.8,3048.4,0.405504]
[1764364865199,0.77247072,3048.7,3048.5,0.09925407]
[1764364865400,0.30547072,3048.6,3048.5,0.09925407]
[1764364865717,1.24227072,3048.6,3048.5,0.09925407]
[1764364867026,1.24227072,3048.6,3048.4,0.405504]
[1764364867314,0.77247072,3048.5,3048.4,0.405504]
[1764364867519,1.24227072,3048.5,3048.4,0.405504]
[1764364868418,1.24227072,3048.5,3048.4,0.43830809]
[1764364868716,0.77527072,3048.5,3048.4,0.43830809]
[1764364869591,0.77527072,3048.5,3048.4,3.71871748]
[1764364870902,0.77527072,3048.5,3048.4,3.81797155]
[1764364871221,0.30547072,3048.5,3048.4,3.81797155]
[1764364872422,0.30547072,3048.5,3048.4,4.27037155]
[1764364873622,1.24227072,3048.5,3048.4,0.50475807]
[1764364873925,0.77527072,3048.5,3048.4,3.78516746]
[1764364874305,0.30547072,3048.5,3048.4,4.23756746]
[1764364874816,0.30547072,3048.5,3048.4,4.72667155]
[1764364875321,0.30547072,3048.5,3048.4,4.27037155]
[1764364876026,0.30547072,3048.5,3048.4,5.54278997]
[1764364877620,0.002,3048.6,3048.5,0.09925407]
[1764364877794,0.002,3048.6,3048.5,0.56065407]
[1764364878723,0.002,3048.6,3048.5,3.84095585]
[1764364878924,0.002,3048.6,3048.5,3.87375886]
[1764364879219,0.002,3048.6,3048.5,5.08501919]
[1764364879422,0.9465,3048.6,3048.5,0.09925407]
[1764364880026,0.9465,3048.6,3048.5,3.37955585]
[1764364881329,0.9465,3048.6,3048.5,0.09925407]
[1764364881531,0.9465,3048.6,3048.4,3.28039949]
[1764364881532,0.4942,3048.6,3048.4,3.28039949]
[1764364881738,0.002,3048.6,3048.4,6.59361297]
[1764364881941,0.002,3048.6,3048.5,0.09925407]
[1764364882305,0.4648,3048.6,3048.5,0.09925407]
[1764364882616,0.77032211,3048.6,3048.5,0.09925407]
[1764364883041,0.77031468,3048.6,3048.5,0.09925407]
[1764364883204,0.77031468,3048.6,3048.5,3.41235886]
[1764364885399,0.77031468,3048.6,3048.4,3.31316792]
[1764364885707,0.78721468,3048.5,3048.4,3.68586783]
[1764364886031,1.25001468,3048.5,3048.4,3.81792599]
[1764364886925,1.24981468,3048.5,3048.4,3.71867192]
[1764364887127,1.24981468,3048.5,3048.4,3.68586783]
[1764364891864,0.76831468,3048.5,3048.4,3.71867192]
[1764364892037,0.30551468,3048.5,3048.4,3.81792599]
[1764364892243,0.30551468,3048.5,3048.4,4.27932599]
[1764364893416,0.76831468,3048.5,3048.4,3.81792599]
[1764364893732,0.76831468,3048.5,3048.4,4.27932599]
[1764364893733,0.30551468,3048.5,3048.4,4.27932599]
[1764364893942,0.30551468,3048.5,3048.4,5.50560951]
[1764364894457,0.30551468,3048.5,3048.4,5.03530951]
[1764364896081,0.76831468,3048.5,3048.4,4.57390951]
[1764364896374,1.24191468,3048.5,3048.4,3.81792599]
[1764364896727,0.76831468,3048.5,3048.4,3.7851219]
[1764364897482,0.76831468,3048.5,3048.4,3.81792599]
[1764364899166,0.30551468,3048.5,3048.4,4.29932599]
[1764364901474,0.30551468,3048.5,3048.4,4.77712599]
[1764364901676,0.30551468,3048.5,3048.4,5.58288951]
[1764364905762,0.30551468,3048.5,3048.4,6.30848362]
[1764364909053,0.30551468,3048.5,3048.4,5.31647953]
[1764364909054,0.80451468,3048.5,3048.4,5.31647953]
[1764364910395,1.24381468,3048.5,3048.4,1.23035218]
[1764364910560,1.24581468,3048.5,3048.4,1.23035218]
[1764364910776,1.24581468,3048.5,3048.4,4.51076157]
[1764364911802,1.24581468,3048.5,3048.2,0.80451468]
[1764364912018,0.0044,3048.3,3048.2,0.09925407]
[1764364912206,0.30991468,3048.3,3048.2,0.09925407]
[1764364912393,0.78351468,3048.3,3048.2,0.09925407]
[1764364912715,0.78351468,3048.3,3048.2,4.10547281]
[1764364913925,0.30991468,3048.3,3048.2,4.10547281]
[1764364917316,0.78351468,3048.3,3048.2,4.10547281]
[1764364918080,0.78351468,3048.3,3048.2,0.82484818]
[1764364918280,0.78351468,3048.3,3048.2,0.72559411]
[1764364918481,0.99051468,3048.3,3048.0,0.09925407]
[1764364918695,0.99051468,3048.3,3047.6,0.001]
[1764364918696,0.4778,3048.1,3047.7,3.28112651]
[1764364918899,0.4776,3047.8,3047.6,0.001]
[1764364919233,1.23491468,3047.7,3047.6,0.001]
[1764364919720,6.2757285,3047.7,3047.6,0.001]
[1764364920497,29.3880975,3047.7,3047.6,0.001]
[1764364920700,32.66926034,3047.7,3047.6,0.001]
[1764364921099,9.1650155,3047.7,3047.6,0.001]
[1764364921415,13.72464397,3047.7,3047.6,0.001]
[1764364922321,2.51338031,3047.7,3047.6,0.001]
[1764364922621,1.23491468,3047.7,3047.6,0.001]
[1764364922818,1.44191468,3047.7,3047.6,0.001]
[1764364922987,0.76131468,3047.7,3047.6,0.001]
[1764364923184,1.23491468,3047.7,3047.6,0.001]
[1764364923420,1.44191468,3047.7,3047.6,0.001]
[1764364923825,14.3707618,3047.7,3047.6,0.001]
[1764364924119,3.88226468,3047.7,3047.6,0.001]
[1764364924318,1.44191468,3047.7,3047.6,0.001]
[1764364924500,4.58878468,3047.7,3047.6,0.001]
[1764364924896,1.23491468,3047.7,3047.6,0.001]
[1764364925108,1.44191468,3047.7,3047.6,0.001]
[1764364926007,1.23491468,3047.7,3047.6,0.001]
[1764364926210,1.44191468,3047.7,3047.6,0.001]
[1764364927199,0.30551468,3047.7,3047.6,0.4639]
[1764364927398,0.30551468,3047.7,3047.6,1.00147077]
[1764364927724,0.30551468,3047.7,3047.6,0.96865807]
[1764364928024,0.30551468,3047.7,3047.6,1.00147077]
[1764364929128,0.30551468,3047.7,3047.6,4.75604127]
[1764364930122,0.30551468,3047.7,3047.6,4.72322857]
[1764364931006,0.002,3048.5,3047.6,4.72322857]
[1764364931007,0.207,3048.3,3047.7,0.405504]
[1764364931212,0.34527955,3048.2,3048.1,0.09925407]
[1764364931629,0.83267955,3048.2,3048.1,0.09925407]
[1764364932910,1.28307955,3048.2,3047.9,0.09925407]
[1764364933119,0.30427175,3048.1,3047.9,0.09925407]
[1764364933318,0.30917175,3048.0,3047.9,0.09925407]
[1764364934333,0.30427175,3048.0,3047.9,3.8431016]
[1764364938136,0.30427175,3048.0,3047.9,4.20894753]
[1764364938314,0.30427175,3048.0,3047.9,4.3082016]
[1764364938834,0.30427175,3048.0,3047.9,5.47263063]
[1764364940527,0.30427175,3048.0,3047.9,5.5054401]
[1764364942326,0.30427175,3048.0,3047.9,5.80971185]
[1764364943443,0.30427175,3048.0,3047.9,5.77690238]
[1764364943643,0.30427175,3048.0,3047.9,5.31180238]
[1764364947557,0.30427175,3048.0,3047.9,5.80971185]
[1764364948150,0.30627175,3048.0,3047.9,5.80971185]
[1764364956746,0.30627175,3048.0,3047.9,11.57817694]
[1764364956947,0.30627175,3048.0,3047.9,11.87336747]
[1764364957263,0.30768393,3048.0,3047.9,11.87336747]
[1764364959232,0.002,3048.0,3047.9,11.87336747]
[1764364963665,0.002,3048.0,3047.9,11.54536747]
[1764364963869,0.002,3048.0,3047.9,11.87336747]
[1764364967942,0.002,3048.0,3047.9,11.54536747]
[1764364968264,0.002,3048.0,3047.9,11.87336747]
[1764364971178,0.002,3048.0,3047.9,16.91623845]
[1764364971574,0.002,3048.0,3047.9,16.58823845]
[1764364971776,0.002,3048.0,3047.9,16.91623845]
[1764364972284,0.002,3048.0,3047.9,11.87336747]
[1764364972451,0.002,3048.0,3047.9,16.58823845]
[1764364973254,0.002,3048.0,3047.9,16.91623845]
[1764364976083,0.002,3048.0,3047.9,11.87336747]
[1764364979589,0.002,3048.0,3047.9,16.91623845]
[1764364980266,0.002,3048.5,3048.4,0.405504]
[1764364980491,0.002,3048.5,3048.4,6.57733314]
[1764364980655,0.002,3048.5,3048.4,8.43269056]
[1764364980858,0.002,3048.5,3048.4,8.20326295]
[1764364982395,0.002,3048.7,3048.4,11.48367234]
[1764364982575,0.002,3048.7,3048.6,7.06312316]
[1764364982975,0.002,3048.7,3048.6,7.64668626]
[1764364983176,0.002,3048.7,3048.6,9.22261737]
[1764364984705,0.002,3049.3,3048.8,0.405504]
[1764364984900,0.002,3049.3,3048.8,6.97492295]
[1764364985074,0.002,3049.3,3048.8,7.40912316]
[1764364985279,0.002,3049.3,3048.8,7.54048583]
[1764364985493,0.002,3049.3,3048.8,9.10816636]
[1764364986174,0.002,3049.2,3048.8,9.10816636]
[1764364986390,0.002,3049.2,3049.0,0.405504]
[1764364986694,0.002,3049.2,3049.1,15.53524699]
[1764364986876,0.002,3049.2,3049.1,15.96945043]
[1764364987081,0.002,3049.2,3049.1,16.10079326]
[1764364987401,0.1861,3049.9,3049.7,0.83275807]
[1764364987570,0.1861,3049.9,3049.7,1.76535218]
[1764364987902,0.9543,3049.8,3049.7,1.76535218]
[1764364988103,0.9543,3049.8,3049.7,2.25295218]
[1764364988302,0.4669,3049.8,3049.7,2.25295218]
[1764364988507,0.002,3049.8,3049.7,2.93051549]
[1764364988912,0.002,3049.8,3049.7,6.68842654]
[1764364990169,0.002,3049.8,3049.7,6.36042654]
[1764364990503,0.002,3049.8,3049.7,6.72121665]
[1764364990680,0.4669,3049.8,3049.7,6.20952654]
[1764364990882,0.9543,3049.8,3049.7,6.20952654]
[1764364991499,0.9543,3049.8,3049.7,5.20396323]
[1764365000820,0.4669,3049.8,3049.7,5.20396323]
[1764365001116,0.9474,3049.8,3049.7,5.23675334]
[1764365001317,0.9474,3049.8,3049.7,5.20396323]
[1764365003520,0.9474,3049.8,3049.7,3.76661105]
[1764365003703,1.25222132,3049.8,3049.7,3.76661105]
[1764365003910,1.25222132,3049.8,3049.7,3.68451505]
[1764365004419,0.9474,3049.8,3049.7,3.27901105]
[1764365004920,0.9474,3049.8,3049.7,3.68451505]
[1764365006022,1.25231777,3049.8,3049.7,3.68451505]
[1764365006392,1.2524049,3049.8,3049.7,3.68451505]
[1764365016513,1.2524049,3049.8,3049.7,3.78376912]
[1764365016715,1.2524049,3049.8,3049.7,3.81655923]
[1764365016910,1.2524049,3049.8,3049.7,3.78376912]
[1764365017948,1.2524049,3049.8,3049.7,3.81655923]
[1764365018637,1.2524049,3049.8,3049.7,3.78376912]
[1764365018939,1.2524049,3049.8,3049.7,3.81655923]
[1764365023559,1.2242049,3049.8,3049.7,3.81655923]
[1764365024151,1.2242049,3049.8,3049.7,3.78376912]
[1764365024652,0.7719049,3049.8,3049.7,3.78376912]
[1764365024857,0.7719049,3049.8,3049.7,3.81655923]
[1764365027760,0.7719049,3049.8,3049.7,3.78376912]
[1764365027960,0.7719049,3049.8,3049.7,3.81655923]
[1764365028767,0.3070049,3049.8,3049.7,4.29885923]
[1764365030157,0.7957049,3049.8,3049.7,3.81655923]
[1764365030462,1.2480049,3049.8,3049.7,3.78376912]
[1764365030863,1.2480049,3049.8,3049.7,4.57947402]
[1764365033063,1.2480049,3049.8,3049.7,1.30046297]
[1764365033261,1.2480049,3049.8,3049.4,0.09925407]
[1764365033428,1.2480049,3049.8,3049.3,0.001]
[1764365033429,0.0049,3049.4,3049.3,0.001]
[1764365033759,0.3099049,3049.4,3049.3,0.001]
[1764365033944,0.7622049,3049.4,3049.3,0.001]
[1764365034327,5.79721379,3049.4,3049.3,0.001]
[1764365034529,6.39763517,3049.4,3049.3,0.001]
[1764365035751,1.36262628,3049.4,3049.3,0.001]
[1764365037565,1.56962628,3049.4,3049.3,0.001]
[1764365038066,0.9692049,3049.4,3049.3,0.001]
[1764365038542,0.7622049,3049.4,3049.3,0.001]
[1764365038949,0.76249544,3049.4,3049.3,0.001]
[1764365043339,0.76220468,3049.4,3049.3,0.001]
[1764365043936,0.30990468,3049.4,3049.3,0.10025407]
[1764365044356,0.76220468,3049.4,3049.3,0.10025407]
[1764365044552,0.30990468,3049.4,3049.3,0.10025407]
[1764365044755,0.76220468,3049.4,3049.3,0.001]
[1764365045069,0.76220468,3049.4,3049.3,0.10025407]
[1764365045453,1.19113674,3049.4,3049.3,0.001]
[1764365045952,0.76220468,3049.4,3049.3,0.001]
[1764365048987,0.30990468,3049.4,3049.3,0.001]
[1764365049289,0.30990468,3049.4,3049.3,0.10025407]
[1764365049655,0.76860468,3049.4,3049.3,0.10025407]
[1764365050576,0.76860468,3049.4,3049.3,0.001]
[1764365051790,1.17747919,3049.4,3049.3,0.001]
[1764365053463,1.17947919,3049.4,3049.3,0.001]
[1764365055676,4.45881282,3049.4,3049.3,0.001]
[1764365056590,4.45891603,3049.4,3049.3,0.001]
[1764365056974,4.4999077,3049.4,3049.3,0.001]
[1764365063095,4.5002727,3049.4,3049.3,0.001]
[1764365065890,9.53976287,3049.4,3049.3,0.001]
[1764365066090,23.8218462,3049.4,3049.3,0.001]
[1764365066688,24.28394041,3049.4,3049.3,0.001]
[1764365067090,26.96214241,3049.4,3049.3,0.001]
[1764365067290,26.66757741,3049.4,3049.3,0.001]
[1764365068094,26.82306341,3049.4,3049.3,0.001]
[1764365069095,26.63988679,3049.4,3049.3,0.001]
[1764365069770,26.97052433,3049.4,3049.3,0.001]
[1764365070093,26.83582733,3049.4,3049.3,0.001]
[1764365070896,25.82302033,3049.4,3049.3,0.001]
[1764365071884,25.49233971,3049.4,3049.3,0.001]
[1764365072061,26.50514671,3049.4,3049.3,0.001]
[1764365072394,26.83582733,3049.4,3049.3,0.001]
[1764365072700,26.50514671,3049.4,3049.3,0.001]
[1764365073205,26.61674271,3049.4,3049.3,0.001]
[1764365073669,9.57374454,3049.4,3049.3,0.001]
[1764365073869,8.63078254,3049.4,3049.3,0.001]
[1764365074298,8.83778254,3049.4,3049.3,0.001]
[1764365075394,4.59065154,3049.4,3049.3,0.001]
[1764365075602,8.87877421,3049.4,3049.3,0.001]
[1764365075803,8.83778254,3049.4,3049.3,0.001]
[1764365077500,4.59065154,3049.4,3049.3,0.001]
[1764365077803,8.87877421,3049.4,3049.3,0.001]
[1764365077983,8.83778254,3049.4,3049.3,0.001]
[1764365078501,4.59065154,3049.4,3049.3,0.001]
[1764365078799,8.87877421,3049.4,3049.3,0.001]
[1764365078995,8.83778254,3049.4,3049.3,0.001]
[1764365079595,8.88342654,3049.4,3049.3,0.001]
[1764365080803,14.23979033,3049.4,3049.3,0.001]
[1764365081009,9.96082233,3049.4,3049.3,0.001]
[1764365081207,21.63999333,3049.4,3049.3,0.001]
[1764365081502,21.12098633,3049.4,3049.3,0.001]
[1764365081707,23.10709833,3049.4,3049.3,0.001]
[1764365081913,22.15406733,3049.4,3049.3,0.001]
[1764365082113,22.05406733,3049.4,3049.3,0.001]
[1764365082600,22.70311233,3049.4,3049.3,0.001]
[1764365083215,22.37243171,3049.4,3049.3,0.001]
[1764365083378,22.70311233,3049.4,3049.3,0.001]
[1764365083574,33.07319133,3049.4,3049.3,0.001]
[1764365086115,29.27625433,3049.4,3049.3,0.001]
[1764365086613,9.96082233,3049.4,3049.3,0.001]
[1764365086804,29.26668533,3049.4,3049.3,0.001]
[1764365087003,0.30742981,3049.4,3049.3,5.53029017]
[1764365087242,0.30742981,3049.4,3049.3,7.36100718]
[1764365087796,0.30742981,3049.4,3049.3,10.64044836]
[1764365088701,0.002,3049.8,3049.3,17.19933072]
[1764365088906,0.002,3049.8,3049.7,6.35413835]
[1764365089122,0.30717715,3049.8,3049.7,6.98955219]
[1764365089295,0.30717715,3049.8,3049.7,7.86405619]
[1764365089612,0.30717715,3049.8,3049.7,8.17123334]
[1764365089811,0.30717715,3049.8,3049.7,11.45024439]
[1764365090889,0.002,3049.8,3049.7,11.45024439]
[1764365104228,0.002,3049.8,3049.7,11.35099032]
[1764365104901,0.002,3049.8,3049.7,11.45024439]
[1764365105099,0.002,3049.8,3049.7,11.14306724]
[1764365105627,0.002,3049.8,3049.7,5.63457707]
[1764365105828,0.002,3049.8,3049.7,4.99916323]
[1764365106032,0.4723,3049.8,3049.7,4.50936323]
[1764365106245,0.002,3049.8,3049.7,4.97306323]
[1764365107634,0.002,3049.8,3049.7,10.4950534]
[1764365108135,0.002,3049.8,3049.7,10.0125534]
[1764365110506,0.002,3049.8,3049.7,4.97306323]
[1764365111341,0.002,3049.8,3049.7,11.89366058]
[1764365111636,0.002,3049.8,3049.7,11.38997047]
[1764365113208,0.002,3049.8,3049.7,11.86087047]
[1764365114245,0.30679611,3049.8,3049.7,11.86087047]
[1764365116443,0.30679611,3049.8,3049.7,11.38997047]
[1764365116634,0.30679611,3049.8,3049.7,6.3504803]
[1764365116943,0.30679611,3049.8,3049.7,6.38327041]
[1764365117270,0.30679611,3049.8,3049.7,5.6576763]
[1764365117444,0.30679611,3049.8,3049.7,3.87475523]
[1764365117955,0.30679611,3049.8,3049.7,4.34565523]
[1764365119150,0.30679611,3049.8,3049.7,5.07124934]
[1764365119345,0.30679611,3049.8,3049.7,5.47675334]
[1764365119950,0.002,3049.8,3049.7,5.47675334]
[1764365120116,0.30768189,3049.8,3049.7,5.47675334]
[1764365120454,0.30768189,3049.8,3049.7,7.06288939]
[1764365120455,0.002,3049.8,3049.7,7.06288939]
[1764365120739,0.3077125,3049.8,3049.7,7.02649928]
[1764365121253,0.3077125,3049.8,3049.7,7.49739928]
[1764365122031,0.3077125,3049.8,3049.7,7.03009928]
[1764365122854,0.3077125,3049.8,3049.7,6.55919928]
[1764365123058,0.3077125,3049.8,3049.7,5.18006323]
[1764365124829,0.3077125,3049.8,3049.7,4.50936323]
[1764365125029,0.3077125,3049.8,3049.7,4.93129927]
[1764365125360,0.3077125,3049.8,3049.7,10.53894319]
[1764365125563,0.3077125,3049.8,3049.7,10.50615308]
[1764365125728,0.3077125,3049.8,3049.7,11.88468012]
[1764365127328,0.3077125,3049.8,3049.4,0.001]
[1764365127329,1.2168125,3049.8,3049.4,0.001]
[1764365127550,0.4498,3049.5,3049.4,0.001]
[1764365127769,0.7555125,3049.5,3049.4,3.28033363]
[1764365128059,1.2109125,3049.5,3049.4,3.28033363]
[1764365128259,1.2109125,3049.5,3049.4,0.001]
[1764365132344,0.7555125,3049.5,3049.4,0.001]
[1764365133275,1.2109125,3049.5,3049.4,0.001]
[1764365134578,0.7555125,3049.5,3049.4,0.001]
[1764365134785,0.3057125,3049.5,3049.4,0.58865407]
[1764365136990,0.3057125,3049.5,3049.4,3.8679877]
[1764365140314,0.7709125,3049.5,3049.4,0.10025407]
[1764365140583,1.2302125,3049.5,3049.4,0.001]
[1764365140788,0.9245,3049.5,3049.4,0.001]
[1764365140977,1.22970017,3049.5,3049.4,0.001]
[1764365144691,0.77040017,3049.5,3049.4,0.001]
[1764365145598,0.30520017,3049.5,3049.4,0.4542]
[1764365145765,0.30520017,3049.5,3049.4,0.55345407]
[1764365146295,0.30520017,3049.5,3049.4,3.8327877]
[1764365147496,0.30520017,3049.5,3049.4,4.3181877]
[1764365150689,0.30520017,3049.5,3049.4,5.50425412]
[1764365152200,0.30520017,3049.5,3049.4,5.01885412]
[1764365152403,0.30520017,3049.5,3049.4,4.2382917]
[1764365153802,0.002,3049.7,3049.4,13.03851518]
[1764365153971,0.002,3049.7,3049.6,0.95795807]
[1764365154167,0.30737396,3049.7,3049.6,0.71175807]
[1764365154372,0.77257396,3049.7,3049.6,3.99087664]
[1764365160998,1.23187396,3049.7,3049.6,0.207]
[1764365161203,1.23187396,3049.7,3049.5,3.2792261]
[1764365161514,0.30537396,3049.6,3049.5,3.6847301]
[1764365161719,0.33907396,3049.6,3049.5,3.6847301]
[1764365164723,0.33907396,3049.6,3049.4,3.37955183]
[1764365164899,0.76627396,3049.5,3049.4,0.001]
[1764365165294,1.24577396,3049.5,3049.4,3.28033363]
[1764365166522,0.30537396,3049.5,3049.4,4.14483763]
[1764365166723,0.30537396,3049.5,3049.4,10.75568217]
[1764365167020,0.30537396,3049.5,3049.4,9.95908155]
[1764365168442,0.30537396,3049.5,3049.4,10.68467566]
[1764365171729,0.30537396,3049.5,3049.4,10.58542159]
[1764365171931,0.30537396,3049.5,3049.4,10.11292159]
[1764365172325,0.30537396,3049.5,3049.4,10.21217566]
[1764365172518,0.30537396,3049.5,3049.4,10.68467566]
[1764365174734,0.30537396,3049.5,3049.4,9.95908155]
[1764365175232,0.30537396,3049.5,3049.4,12.02662779]
[1764365178315,0.30537396,3049.5,3049.4,11.30103368]
[1764365178534,0.30537396,3049.5,3049.4,11.30083678]
[1764365178839,0.30537396,3049.5,3049.4,12.02643089]
[1764365181512,0.002,3049.7,3049.4,12.02643089]
[1764365181513,0.002,3049.7,3049.6,0.50475807]
[1764365181713,0.002,3049.7,3049.6,8.32161276]
[1764365181934,0.002,3049.7,3049.6,8.74662158]
[1764365182138,0.002,3049.7,3049.6,8.87796139]
[1764365182825,0.002,3049.7,3049.6,12.15707996]
[1764365186739,0.002,3049.8,3049.7,1.23035218]
[1764365186945,0.002,3049.8,3049.7,5.00735461]
[1764365187439,0.002,3049.8,3049.7,5.13868278]
[1764365187627,0.002,3049.8,3049.7,4.81068278]
[1764365187828,0.002,3049.8,3049.7,5.13868278]
[1764365189543,0.002,3049.8,3049.7,8.41769383]
[1764365189746,0.002,3050.1,3049.7,14.51567175]
[1764365189915,0.002,3050.4,3050.3,0.50475807]
[1764365190240,0.002,3050.4,3050.3,6.56765102]
[1764365190446,0.002,3050.4,3050.3,7.51385102]
[1764365190848,0.30522949,3051.7,3050.4,1.355904]
[1764365191033,0.4904,3051.8,3051.6,0.50475807]
[1764365191221,0.79366326,3051.7,3051.6,0.50475807]
[1764365191410,1.28016326,3051.7,3051.6,0.50475807]
[1764365191613,1.28016326,3051.7,3051.6,3.78172752]
[1764365194627,0.9749,3051.7,3051.6,3.78172752]
[1764365196138,0.9749,3051.7,3051.6,0.50475807]
[1764365196336,0.9749,3051.7,3051.6,3.78172752]
[1764365200060,0.9674,3051.7,3051.6,3.68247345]
[1764365200660,0.9674,3051.7,3051.6,3.78172752]
[1764365202254,0.9353,3051.7,3051.6,3.68247345]
[1764365204845,0.9353,3051.7,3051.6,3.78172752]
[1764365205469,0.9353,3051.7,3051.6,3.68247345]
[1764365206470,0.9353,3051.7,3051.5,4.1018967]
[1764365206647,0.5249,3051.6,3051.5,4.5074007]
[1764365211190,0.82957058,3051.6,3051.5,4.5074007]
[1764365211752,0.82957058,3051.6,3051.5,5.33697128]
[1764365218275,0.82957058,3051.6,3051.5,11.6450867]
[1764365218276,0.30467058,3051.6,3051.5,11.6450867]
[1764365218483,0.30467058,3051.6,3051.5,11.71157001]
[1764365218708,0.30467058,3051.6,3051.5,12.16817001]
[1764365221886,0.002,3051.7,3051.6,0.50475807]
[1764365222192,0.30818142,3051.7,3051.6,1.67902776]
[1764365222439,0.002,3051.7,3051.6,4.18150606]
[1764365222699,0.002,3051.7,3051.6,4.66240606]
[1764365222902,0.002,3051.7,3051.6,7.82078249]
[1764365223105,0.002,3051.7,3051.6,7.30797551]
[1764365225075,0.002,3051.7,3051.6,6.88827951]
[1764365225280,1.21639084,3051.7,3051.6,3.85712352]
[1764365225602,1.21639084,3051.7,3051.5,3.27702764]
[1764365225766,1.21439084,3051.6,3051.5,4.00262175]
[1764365228706,1.21639084,3051.6,3051.5,4.00262175]
[1764365235820,1.21639084,3051.6,3051.5,3.80262175]
[1764365236021,1.21639084,3051.6,3050.6,14.86942393]
[1764365236218,1.21439084,3051.5,3051.0,0.09925407]
[1764365236384,0.30569084,3051.4,3051.0,0.09925407]
[1764365236715,0.4579,3051.1,3051.0,0.09925407]
[1764365236882,0.76359084,3051.1,3051.0,0.09925407]
[1764365237083,1.21439084,3051.1,3051.0,0.09925407]
[1764365237815,1.21439084,3051.1,3051.0,3.37686796]
[1764365240109,1.21439084,3051.1,3051.0,3.27761389]
[1764365240330,1.21439084,3051.1,3050.7,6.55587242]
[1764365240495,0.4579,3050.9,3050.7,6.55587242]
[1764365240698,0.4579,3050.9,3050.8,0.09925407]
[1764365240907,0.76298988,3050.9,3050.8,0.09925407]
[1764365241417,0.76298988,3050.9,3050.8,3.37708283]
[1764365243399,0.30508988,3050.9,3050.8,3.37708283]
[1764365246214,0.30508129,3050.9,3050.8,3.27782876]
[1764365246396,0.30508129,3050.9,3050.8,3.37708283]
[1764365247211,0.30508129,3050.9,3050.8,3.37808283]
[1764365250633,0.30508129,3050.9,3050.8,3.74668283]
[1764365251511,0.30508129,3050.9,3050.8,3.37808283]
[1764365253597,0.79038129,3050.9,3050.8,3.37808283]
[1764365255827,0.30508129,3050.9,3050.8,3.37808283]
[1764365257311,0.30508129,3050.9,3050.8,8.41108405]
[1764365261326,0.76348129,3050.9,3050.8,8.41108405]
[1764365262031,1.21838129,3050.9,3050.8,8.41108405]
[1764365263132,0.76348129,3050.9,3050.8,8.41108405]
[1764365264639,1.21838129,3050.9,3050.8,8.31182998]
[1764365265008,0.30508129,3050.9,3050.8,8.41108405]
[1764365272364,1.41328129,3050.9,3050.8,3.27882876]
[1764365273271,1.41328129,3050.9,3050.8,3.37808283]
[1764365277088,1.41328129,3050.9,3050.8,3.27882876]
[1764365279660,1.41328129,3050.9,3050.8,0.001]
[1764365282880,0.30508129,3050.9,3050.8,0.001]
[1764365283046,0.30508129,3050.9,3050.8,0.10025407]
[1764365283246,0.76348129,3050.9,3050.8,0.10025407]
[1764365283646,1.21838129,3050.9,3050.8,0.10025407]
[1764365286975,0.76348129,3050.9,3050.8,3.37808283]
[1764365289277,0.30508129,3050.9,3050.8,6.22698831]
[1764365289575,0.30508129,3050.9,3050.8,6.69484238]
[1764365291469,0.002,3051.5,3051.4,0.09925407]
[1764365291773,0.30818596,3051.5,3051.4,0.09925407]
[1764365291961,1.24808596,3051.5,3051.4,0.09925407]
[1764365294781,1.24808596,3051.5,3051.4,3.37643831]
[1764365296384,0.78698596,3051.5,3051.4,3.37643831]
[1764365296681,0.30818596,3051.5,3051.4,6.43410889]
[1764365296883,0.30818596,3051.5,3051.4,6.06550889]
[1764365297185,0.002,3051.5,3051.4,6.06550889]
[1764365298079,0.002,3051.5,3051.4,6.43410889]
[1764365302083,0.002,3051.5,3051.4,6.06550889]
[1764365302682,0.002,3051.5,3051.4,11.09426256]
[1764365303681,0.002,3051.5,3051.4,10.99500849]
[1764365303885,0.002,3051.5,3051.4,11.09426256]
[1764365305798,0.4793,3051.5,3051.4,10.32015856]
[1764365306086,0.4793,3051.5,3051.4,9.13078609]